[Event "14th Chennai GM Open 2023"]
[Site "Chennai"]
[Date "2024.01.07"]
[Round "10.2"]
[White "Nguyen, Duc Hoa"]
[Black "Tologon tegin, Semetei"]
[Result "1/2-1/2"]
[ECO "E11"]
[WhiteElo "2322"]
[BlackElo "2384"]
[Annotator "RC"]
[PlyCount "105"]
[EventDate "2023.12.31"]
[EventType "swiss"]
[EventCountry "IND"]
[SourceTitle "playchess.com"]
[Source "ChessBase"]
[SourceQuality "1"]
[TimeControl "5400+30"]

1. d4 {[%emt 0:00:12]} Nf6 {[%emt 0:04:32]} 2. c4 {[%emt 0:00:08]} e6 {[%emt 0:00:04]} 3. g3 {[%emt 0:00:09]} Bb4+ {[%emt 0:00:26]} 4. Bd2 {[%emt 0:00:51]} Bxd2+ {[%emt 0:05:10]} 5. Qxd2 {[%emt 0:01:00]} O-O {[%emt 0:00:15]} 6. Bg2 {[%emt 0:00:35]} d5 {[%emt 0:00:13]} 7. Nf3 {[%emt 0:00:21]} c6 {[%emt 0:00:59]} 8. O-O {[%emt 0:01:31]} b6 {[%emt 0:00:25]} 9. Ne5 {[%emt 0:05:52]} Ba6 {[%emt 0:16:26]} 10. Rd1 {[%emt 0:10:47]} Qe7 {[%emt 0:03:54]} 11. a4 {[%emt 0:02:09]} Rc8 {[%emt 0:03:56]} 12. b4 {[%emt 0:05:42]} Nbd7 {[%emt 0:19:27]} 13. b5 {[%emt 0:07:17]} cxb5 {[%emt 0:00:20]} 14. axb5 {[%emt 0:00:05]} Bb7 {[%emt 0:00:07]} 15. Nc3 {[%emt 0:00:10]} Nxe5 {[%emt 0:09:13]} 16. dxe5 {[%emt 0:00:04]} Ne4 {[%emt 0:00:03]} 17. Nxe4 {[%emt 0:00:28]} dxe4 {[%emt 0:00:04]} 18. Qd7 {[%emt 0:00:15]} Kf8 {[%emt 0:00:24]} 19. Rd4 {[%emt 0:02:18]} Rd8 {[%emt 0:03:17]} 20. Qxe7+ {[%emt 0:00:06]} Kxe7 {[%emt 0:00:03]} 21. Rxd8 {[%emt 0:04:07]} Kxd8 {[%emt 0:00:15]} 22. Rd1+ {[%emt 0:00:03]} Kc7 {[%emt 0:07:37]} 23. Rd4 {[%emt 0:00:22]} Rd8 {[%emt 0:00:07]} 24. e3 {[%emt 0:00:57]} f6 {[%emt 0:04:29]} 25. Bh3 {[%emt 0:57:31]} fxe5 {[%emt 0:04:14]} 26. Rxd8 {[%emt 0:00:00]} Kxd8 {[%emt 0:00:06]} 27. Bxe6 {[%emt 0:00:00]} Ke7 {[%emt 0:00:08]} 28. Bg8 {[%emt 0:00:00]} h6 {[%emt 0:00:26]} 29. Kf1 {[%emt 0:00:00]} Kd6 {[%emt 0:00:44]} 30. Ke1 {[%emt 0:00:00]} Kc5 {[%emt 0:00:26]} 31. Kd2 {[%emt 0:00:00]} Kb4 {[%emt 0:00:07]} 32. Be6 {[%emt 0:00:00]} g5 {[%emt 0:02:40]} 33. h4 {[%emt 0:00:00]} gxh4 {[%emt 0:00:17]} 34. gxh4 {[%emt 0:00:00]} a6 {[%emt 0:01:51]} 35. bxa6 {[%emt 0:00:00]} Bxa6 {[%emt 0:00:04]} 36. Bd5 {[%emt 0:00:00]} Bxc4 {[%emt 0:00:04]} 37. Bxe4 {[%emt 0:00:00]} Kc5 {[%emt 0:00:08]} 38. Bg6 {[%emt 0:00:00]} b5 {[%emt 0:00:59]} 39. f4 {[%emt 0:00:00]} exf4 {[%emt 0:00:05]} 40. exf4 {[%emt 0:00:00]} Kd4 {[%emt 0:00:14]} 41. f5 {[%emt 0:00:00]} Ke5 {[%emt 0:00:05]} 42. Kc3 {[%emt 0:00:00]} Bf1 {[%emt 0:02:40]} 43. Kb4 {[%emt 0:00:00]} Bd3 {[%emt 0:01:15]} 44. h5 {[%emt 0:00:00]} Kf6 {[%emt 0:00:11]} 45. Kc5 {[%emt 0:00:00]} Be2 {[%emt 0:04:11]} 46. Kb4 {[%emt 0:00:00]} Kg5 {[%emt 0:00:04]} 47. Kc5 {[%emt 0:00:00]} Bc4 {[%emt 0:01:37]} 48. Kb4 {[%emt 0:00:00]} Bf1 {[%emt 0:00:05]} 49. Kc5 {[%emt 0:00:00]} Be2 {[%emt 0:00:06]} 50. Kb4 {[%emt 0:00:00]} Bxh5 {[%emt 0:00:15]} 51. Kxb5 {[%emt 0:00:00]} Bxg6 {[%emt 0:00:28]} 52. fxg6 {[%emt 0:00:00]} Kxg6 {[%emt 0:00:06]} 53. Kc4 {[%emt 0:00:00]} 1/2-1/2

[Event "14th Chennai GM Open 2023"]
[Site "Chennai"]
[Date "2024.01.07"]
[Round "10.3"]
[White "Savchenko, Boris"]
[Black "Abhishek, Kelkar"]
[Result "1-0"]
[ECO "B53"]
[WhiteElo "2489"]
[BlackElo "2204"]
[Annotator "TA"]
[PlyCount "49"]
[EventDate "2023.12.31"]
[EventType "swiss"]
[EventCountry "IND"]
[SourceTitle "playchess.com"]
[Source "ChessBase"]
[SourceQuality "1"]
[TimeControl "5400+30"]

{[%evp 24,49,23,9,13,-7,22,0,0,0,0,0,110,114,97,101,118,97,372,258,245,256,1308,1309,1309,1272,29996,29997]} 1. e4 {[%emt 0:01:33]} c5 {[%emt 0:02:13]} 2. Nf3 {[%emt 0:00:10]} Nc6 {[%emt 0:00:07]} 3. Bb5 {[%emt 0:00:08]} d6 {[%emt 0:03:38]} 4. d4 {[%emt 0:07:08]} cxd4 {[%emt 0:01:05]} 5. Qxd4 {[%emt 0:00:07]} Bd7 {[%emt 0:01:26]} 6. Bxc6 {[%emt 0:01:01]} Bxc6 {[%emt 0:09:24]} 7. Nc3 {[%emt 0:01:14]} Nf6 {[%emt 0:33:18]} 8. Bg5 {[%emt 0:00:20]} e6 {[%emt 0:01:25]} 9. O-O-O {[%emt 0:00:15]} Be7 {[%emt 0:06:18]} 10. Qd3 {[%emt 0:01:07]} O-O {[%emt 0:01:42]} 11. Nd4 {[%emt 0:00:15]} Rc8 {[%emt 0:03:49]} 12. h4 {[%emt 0:09:27]} Qa5 {[%emt 0:07:59]} 13. f4 {[%emt 0:11:03][%cal Bf2f4,Bf4f5][%mdl 32]} Rfe8 {[%emt 0:04:07] B53: Sicilian: 2...d6: Lines with Qxd4.} 14. f5 {[%emt 0:08:20]} Bd7 {[%emt 0:15:06]} 15. e5 {[%emt 0:04:43]} Qxe5 {[%emt 0:04:28][%cal Re6f5] The position is equal.} ({Don't take} 15... dxe5 16. Nb3 Rxc3 17. Nxa5 $16) 16. Rhe1 {[%emt 0:00:17] [#]} Qc5 $146 {[%emt 0:01:49][%cal Re6f5]} ({Predecessor:} 16... Qa5 17. fxe6 fxe6 18. Nxe6 b5 19. Nd5 Bxe6 20. Rxe6 Nxd5 21. Qxd5 Bxg5+ 22. hxg5 Kh8 23. Rh1 Qb4 24. Qf5 g6 25. Rxh7+ {1-0 Thanki,H (2099)-Cadena Montoya,G (2230) World Amateur-ch U2300 2018 (3)}) 17. fxe6 {[%emt 0:00:21]} Bxe6 {[%emt 0:00:12]} (17... fxe6 $11 {keeps the balance.} 18. Nxe6 Qc4 19. Qxc4 Rxc4) 18. Nxe6 $16 {[%emt 0:00:21]} fxe6 {[%emt 0:00:05]} 19. Rxe6 {[%emt 0:00:12] [#] Hoping for Qe2.} d5 {[%emt 0:01:02][%cal Od5d4]} 20. Rde1 $36 {[%emt 0:01:10][%mdl 2048] Bxf6 is the strong threat. White is really pushing. White is much more active.} (20. Nxd5 $2 {perishes.} Nxd5 21. Bxe7 Rxe7 $19) 20... Kf7 {[%emt 0:00:40][%mdl 8192]} (20... Bf8 $16) 21. Qf5 {[%emt 0:18:48] Strongly threatening Bxf6.} d4 {[%emt 0:00:21]} 22. Nd5 {[%emt 0:05:11]} d3 $2 {[%emt 0:00:34]} (22... Qxc2+ 23. Qxc2 Rxc2+ 24. Kxc2 Nxd5 25. Bxe7 Rxe7 26. Rxe7+ Nxe7) 23. Rxe7+ $18 {[%emt 0:00:22]} Rxe7 {[%emt 0:00:06]} 24. Rxe7+ {[%emt 0:00:04]} Kf8 {[%emt 0:00:01] [#]} 25. Qxf6+ $3 {[%emt 0:00:16][%mdl 512] White took control after the opening. Beautiful play by Savchenko!   Weighted Error Value: White=0.28 (precise) /Black=0.74} 1-0

[Event "14th Chennai GM Open 2023"]
[Site "Chennai"]
[Date "2024.01.07"]
[Round "10.4"]
[White "Podolchenko, Evgeniy"]
[Black "Nithin Babu"]
[Result "1-0"]
[ECO "E71"]
[WhiteElo "2376"]
[BlackElo "2177"]
[Annotator "RC"]
[PlyCount "79"]
[EventDate "2023.12.31"]
[EventType "swiss"]
[EventCountry "IND"]
[SourceTitle "playchess.com"]
[Source "ChessBase"]
[SourceQuality "1"]
[TimeControl "5400+30"]

1. d4 {[%emt 0:00:03]} Nf6 {[%emt 0:02:12]} 2. c4 {[%emt 0:01:29]} g6 {[%emt 0:00:06]} 3. Nc3 {[%emt 0:00:04]} Bg7 {[%emt 0:00:05]} 4. e4 {[%emt 0:00:04]} d6 {[%emt 0:00:04]} 5. h3 {[%emt 0:00:04]} O-O {[%emt 0:00:14]} 6. Be3 {[%emt 0:00:04]} e5 {[%emt 0:00:13]} 7. d5 {[%emt 0:00:06]} Na6 {[%emt 0:00:25]} 8. g4 {[%emt 0:02:56]} Nc5 {[%emt 0:00:15]} 9. f3 {[%emt 0:00:20]} a5 {[%emt 0:01:04]} 10. Nge2 {[%emt 0:00:11]} c6 {[%emt 0:01:48]} 11. Ng3 {[%emt 0:01:39]} h5 {[%emt 0:01:52]} 12. g5 {[%emt 0:17:50]} Ne8 {[%emt 0:13:12]} 13. dxc6 {[%emt 0:07:21]} Ne6 {[%emt 0:01:05]} 14. cxb7 {[%emt 0:02:38]} Bxb7 {[%emt 0:00:09]} 15. h4 {[%emt 0:00:12]} N8c7 {[%emt 0:05:14]} 16. Qd2 {[%emt 0:13:27]} Nd4 {[%emt 0:03:15]} 17. Bxd4 {[%emt 0:05:23]} exd4 {[%emt 0:00:02]} 18. Nd5 {[%emt 0:00:02]} Ne6 {[%emt 0:03:05]} 19. f4 {[%emt 0:07:04]} Nc5 {[%emt 0:09:42]} 20. Bg2 {[%emt 0:05:15]} d3 {[%emt 0:06:54]} 21. Rb1 {[%emt 0:05:45]} Bxd5 {[%emt 0:04:15]} 22. cxd5 {[%emt 0:00:12]} Qb6 {[%emt 0:00:38]} 23. Bf3 {[%emt 0:05:42]} Rac8 {[%emt 0:03:39]} 24. Kf1 {[%emt 0:02:38]} Rfe8 {[%emt 0:01:17]} 25. Qf2 {[%emt 0:02:47]} Qb4 {[%emt 0:07:24]} 26. a3 {[%emt 0:02:18]} Qc4 {[%emt 0:07:57]} 27. Kg2 {[%emt 0:01:02]} Bd4 {[%emt 0:03:09]} 28. Qf1 {[%emt 0:00:05]} Nb3 {[%emt 0:02:52]} 29. Rd1 {[%emt 0:00:41]} Qc2+ {[%emt 0:01:54]} 30. Kh3 {[%emt 0:00:02]} d2 {[%emt 0:01:18]} 31. e5 {[%emt 0:01:31]} dxe5 {[%emt 0:04:20]} 32. Be4 {[%emt 0:01:35]} Qxb2 {[%emt 0:01:38]} 33. f5 {[%emt 0:00:02]} Rf8 {[%emt 0:01:04]} 34. fxg6 {[%emt 0:00:12]} Rc3 {[%emt 0:12:22]} 35. g7 {[%emt 0:00:40]} Kxg7 {[%emt 0:02:03]} 36. Qf6+ {[%emt 0:01:30]} Kg8 {[%emt 0:00:02]} 37. Qh6 {[%emt 0:01:04]} f5 {[%emt 0:01:07]} 38. g6 {[%emt 0:00:32]} Rc7 {[%emt 0:00:48]} 39. d6 {[%emt 0:00:18]} fxe4 {[%emt 0:00:44]} 40. dxc7 {[%emt 0:00:06]} 1-0

[Event "14th Chennai GM Open 2023"]
[Site "Chennai"]
[Date "2024.01.07"]
[Round "10.5"]
[White "Aakash G"]
[Black "Buscara, Sevan"]
[Result "1-0"]
[ECO "D10"]
[WhiteElo "1823"]
[BlackElo "2359"]
[Annotator "RC"]
[PlyCount "55"]
[EventDate "2023.12.31"]
[EventType "swiss"]
[EventCountry "IND"]
[SourceTitle "playchess.com"]
[Source "ChessBase"]
[SourceQuality "1"]
[TimeControl "5400+30"]

1. d4 {[%emt 0:00:04]} d5 {[%emt 0:01:02]} 2. c4 {[%emt 0:00:16]} c6 {[%emt 0:00:42]} 3. cxd5 {[%emt 0:00:06]} cxd5 {[%emt 0:00:21]} 4. Nc3 {[%emt 0:00:11]} Nf6 {[%emt 0:00:12]} 5. Bf4 {[%emt 0:00:12]} Nc6 {[%emt 0:00:29]} 6. e3 {[%emt 0:00:07]} Bg4 {[%emt 0:00:35]} 7. f3 {[%emt 0:00:22]} Bd7 {[%emt 0:00:18]} 8. Bd3 {[%emt 0:00:37]} e6 {[%emt 0:00:17]} 9. Bg5 {[%emt 0:00:42]} Qb6 {[%emt 0:02:57]} 10. Qd2 {[%emt 0:03:28]} Na5 {[%emt 0:05:08]} 11. Nge2 {[%emt 0:00:41]} Nc4 {[%emt 0:03:15]} 12. Bxc4 {[%emt 0:00:20]} dxc4 {[%emt 0:00:03]} 13. e4 {[%emt 0:03:06]} h6 {[%emt 0:04:46]} 14. Bh4 {[%emt 0:04:27]} Qa5 {[%emt 0:06:00]} 15. O-O {[%emt 0:01:45]} b5 {[%emt 0:07:20]} 16. e5 {[%emt 0:00:24]} g5 {[%emt 0:05:20]} 17. Be1 {[%emt 0:06:57]} Nh5 {[%emt 0:01:01]} 18. g4 {[%emt 0:02:17]} Ng7 {[%emt 0:02:58]} 19. f4 {[%emt 0:01:37]} O-O-O {[%emt 0:03:43]} 20. fxg5 {[%emt 0:19:57]} hxg5 {[%emt 0:09:00]} 21. Ne4 {[%emt 0:03:07]} b4 {[%emt 0:45:33]} 22. Rc1 {[%emt 0:02:52]} Qxa2 {[%emt 0:00:00]} 23. Rxf7 {[%emt 0:04:33]} Bc6 {[%emt 0:00:00]} 24. Nd6+ {[%emt 0:02:47]} Bxd6 {[%emt 0:00:00]} 25. exd6 {[%emt 0:00:33]} c3 {[%emt 0:00:00]} 26. Nxc3 {[%emt 0:00:54]} bxc3 {[%emt 0:00:00]} 27. Qxc3 {[%emt 0:00:07]} Rxd6 {[%emt 0:00:00]} 28. Qb4 {[%emt 0:42:01]} 1-0

[Event "14th Chennai GM Open 2023"]
[Site "Chennai"]
[Date "2024.01.07"]
[Round "10.7"]
[White "Pawar, Harshit"]
[Black "Glek, Igor"]
[Result "0-1"]
[ECO "B23"]
[WhiteElo "1945"]
[BlackElo "2429"]
[Annotator "RC"]
[PlyCount "114"]
[EventDate "2023.12.31"]
[EventType "swiss"]
[EventCountry "IND"]
[SourceTitle "playchess.com"]
[Source "ChessBase"]
[SourceQuality "1"]
[TimeControl "5400+30"]

1. e4 {[%emt 0:00:12]} c5 {[%emt 0:02:29]} 2. Nc3 {[%emt 0:00:05]} Nc6 {[%emt 0:00:17]} 3. Bb5 {[%emt 0:00:06]} Nd4 {[%emt 0:00:05]} 4. Bc4 {[%emt 0:00:04]} Nf6 {[%emt 0:00:17]} 5. Nge2 {[%emt 0:00:28]} a6 {[%emt 0:00:14]} 6. a4 {[%emt 0:00:06]} e6 {[%emt 0:00:13]} 7. O-O {[%emt 0:00:13]} d5 {[%emt 0:13:21]} 8. exd5 {[%emt 0:00:06]} exd5 {[%emt 0:00:05]} 9. Ba2 {[%emt 0:00:06]} Bd6 {[%emt 0:02:33]} 10. d3 {[%emt 0:00:42]} Ne6 {[%emt 0:05:06]} 11. Ng3 {[%emt 0:00:07]} O-O {[%emt 0:01:09]} 12. Nh5 {[%emt 0:00:07]} Nxh5 {[%emt 0:05:36]} 13. Qxh5 {[%emt 0:00:03]} d4 {[%emt 0:00:05]} 14. Ne4 {[%emt 0:00:15]} Be7 {[%emt 0:03:58]} 15. f4 {[%emt 0:10:18]} g6 {[%emt 0:15:59]} 16. Qe5 {[%emt 0:07:17]} Qc7 {[%emt 0:01:07]} 17. Bxe6 {[%emt 0:07:55]} Qxe5 {[%emt 0:00:50]} 18. Bxf7+ {[%emt 0:00:02]} Rxf7 {[%emt 0:00:06]} 19. fxe5 {[%emt 0:00:09]} Rxf1+ {[%emt 0:00:13]} 20. Kxf1 {[%emt 0:00:02]} Bf5 {[%emt 0:07:57]} 21. Bg5 {[%emt 0:02:47]} Bxg5 {[%emt 0:04:46]} 22. Nxg5 {[%emt 0:00:03]} c4 {[%emt 0:01:05]} 23. Ke2 {[%emt 0:11:13]} cxd3+ {[%emt 0:02:08]} 24. cxd3 {[%emt 0:00:07]} Re8 {[%emt 0:00:04]} 25. Kd2 {[%emt 0:00:13]} Rxe5 {[%emt 0:00:16]} 26. Nf3 {[%emt 0:00:32]} Rd5 {[%emt 0:00:29]} 27. h3 {[%emt 0:02:37]} Bd7 {[%emt 0:01:19]} 28. Rc1 {[%emt 0:01:18]} Bxa4 {[%emt 0:01:06]} 29. Rc8+ {[%emt 0:00:41]} Kg7 {[%emt 0:00:06]} 30. Rc7+ {[%emt 0:00:04]} Rd7 {[%emt 0:00:09]} 31. Rxd7+ {[%emt 0:05:00]} Bxd7 {[%emt 0:00:11]} 32. Nxd4 {[%emt 0:00:02]} Kf6 {[%emt 0:00:16]} 33. Ke3 {[%emt 0:00:53]} Ke5 {[%emt 0:00:32]} 34. Nf3+ {[%emt 0:00:13]} Kd5 {[%emt 0:00:12]} 35. Ng5 {[%emt 0:00:09]} h6 {[%emt 0:06:19]} 36. Nf7 {[%emt 0:00:47]} h5 {[%emt 0:00:36]} 37. Ng5 {[%emt 0:05:34]} a5 {[%emt 0:02:15]} 38. Nf3 {[%emt 0:02:08]} b5 {[%emt 0:01:07]} 39. Kd2 {[%emt 0:11:43]} b4 {[%emt 0:00:36]} 40. b3 {[%emt 0:00:12]} Be6 {[%emt 0:06:13]} 41. Ke3 {[%emt 0:06:40]} Kc5 {[%emt 0:00:47]} 42. Nd2 {[%emt 0:10:39]} h4 {[%emt 0:00:16]} 43. d4+ {[%emt 0:00:12]} Kc6 {[%emt 0:09:28]} 44. Nc4 {[%emt 0:00:27]} Bd5 {[%emt 0:00:38]} 45. Ne5+ {[%emt 0:05:39]} Kb5 {[%emt 0:00:37]} 46. Nxg6 {[%emt 0:00:02]} Bxb3 {[%emt 0:00:08]} 47. Nxh4 {[%emt 0:00:13]} a4 {[%emt 0:00:34]} 48. Kd2 {[%emt 0:00:14]} a3 {[%emt 0:00:15]} 49. Kc1 {[%emt 0:00:26]} Kc4 {[%emt 0:05:20]} 50. Nf5 {[%emt 0:07:01]} Kc3 {[%emt 0:00:38]} 51. Ng3 {[%emt 0:03:18]} a2 {[%emt 0:00:51]} 52. Ne2+ {[%emt 0:00:03]} Kd3 {[%emt 0:00:04]} 53. Kb2 {[%emt 0:00:16]} Kxe2 {[%emt 0:00:02]} 54. h4 {[%emt 0:00:05]} Kd3 {[%emt 0:00:31]} 55. h5 {[%emt 0:00:06]} Bg8 {[%emt 0:01:29]} 56. d5 {[%emt 0:01:13]} a1=Q+ {[%emt 0:05:27]} 57. Kxa1 {[%emt 0:00:07]} Kc2 {[%emt 0:00:00]} 0-1

[Event "14th Chennai GM Open 2023"]
[Site "Chennai"]
[Date "2024.01.07"]
[Round "10.8"]
[White "Aronyak Ghosh"]
[Black "Murali Krishnan B T"]
[Result "1/2-1/2"]
[ECO "D41"]
[WhiteElo "2545"]
[BlackElo "2181"]
[Annotator "TA"]
[PlyCount "60"]
[EventDate "2023.12.31"]
[EventType "swiss"]
[EventCountry "IND"]
[SourceTitle "playchess.com"]
[Source "ChessBase"]
[SourceQuality "1"]
[TimeControl "5400+30"]

{[%evp 14,60,32,20,24,37,18,18,19,19,45,46,47,18,23,13,10,7,9,0,0,0,0,0,0,0,0,0,0,-3,0,0,0,-1,0,0,0,0,0,0,0,-8,-5,-10,-11,-13,0,-5,-19]} 1. c4 {[%emt 0:03:47]} e6 {[%emt 0:00:52]} 2. Nc3 {[%emt 0:00:18]} d5 {[%emt 0:00:30]} 3. d4 {[%emt 0:00:09]} Nf6 {[%emt 0:01:12]} 4. cxd5 {[%emt 0:00:12]} Nxd5 {[%emt 0:03:41]} 5. Nf3 {[%emt 0:00:37]} c5 {[%emt 0:02:20]} 6. g3 {[%emt 0:04:22]} cxd4 {[%emt 0:05:25]} 7. Nxd5 {[%emt 0:01:30]} Qxd5 {[%emt 0:01:09]} 8. Qxd4 {[%emt 0:00:10]} Qxd4 {[%emt 0:06:57] D41: Queen's Gambit Declined: Semi-Tarrasch with 5 cxd5.} (8... Qf5 {keeps more tension.} 9. Ne5 f6 10. Qc4 Nd7) 9. Nxd4 {[%emt 0:00:03]} Bb4+ {[%emt 0:00:06]} 10. Bd2 {[%emt 0:00:04]} Bxd2+ {[%emt 0:00:13]} 11. Kxd2 {[%emt 0:00:02]} Bd7 {[%emt 0:00:06]} 12. Bg2 {[%emt 0:03:53]} Nc6 {[%emt 0:00:14][%cal Bb8c6,Bc6e5,Be5g4][%mdl 32] [#]} 13. Nb3 $146 {[%emt 0:00:32]} ({Predecessor:} 13. Bxc6 Bxc6 14. Nxc6 bxc6 15. Rhc1 O-O-O+ 16. Ke1 Kb7 17. Rc3 Rd5 18. Rac1 Rc8 19. Rb3+ Kc7 20. Rbc3 Kb6 21. Rb3+ Kc7 22. Rbc3 Kb6 {½-½ Zhou,J (2606)-Dragun,K (2614) Continental op 49th 2019 (4)}) 13... b6 {[%emt 0:03:27]} 14. Rhc1 {[%emt 0:02:28]} Rc8 {[%emt 0:01:37] The position is equal.} 15. Rc4 {[%emt 0:03:55]} Ke7 {[%emt 0:05:51]} 16. Rac1 {[%emt 0:00:49][%cal Rg2c6]} Ne5 {[%emt 0:00:16]} 17. Rc7 {[%emt 0:02:01]} Rxc7 {[%emt 0:00:16]} 18. Rxc7 {[%emt 0:00:03]} Rc8 {[%emt 0:00:12]} 19. Rxc8 {[%emt 0:03:34]} Bxc8 $11 {[%emt 0:00:06][%mdl 4096] Endgame KBN-KBN} 20. Nd4 {[%emt 0:00:07]} Bd7 {[%emt 0:00:57]} 21. b3 {[%emt 0:01:37]} Ng4 {[%emt 0:03:06]} 22. f3 {[%emt 0:06:48]} e5 {[%emt 0:06:06]} 23. Nc2 {[%emt 0:00:02]} Nh6 {[%emt 0:00:35]} 24. e4 {[%emt 0:01:48]} f6 {[%emt 0:00:32]} 25. Bf1 {[%emt 0:00:36]} Nf7 {[%emt 0:00:25]} 26. Ke3 {[%emt 0:00:28]} Be6 {[%emt 0:03:20]} 27. Nb4 {[%emt 0:00:42]} a5 {[%emt 0:01:42]} 28. Nd3 {[%emt 0:00:02]} Kd6 {[%emt 0:00:23]} 29. Nb2 {[%emt 0:01:18]} Kc6 {[%emt 0:00:51]} 30. Bc4 {[%emt 0:01:16]} Bxc4 {[%emt 0:00:08] Weighted Error Value: White=0.03 (flawless) /Black=0.02 (flawless)} 1/2-1/2

[Event "14th Chennai GM Open 2023"]
[Site "Chennai"]
[Date "2024.01.07"]
[Round "10.9"]
[White "Viani Antonio Dcunha"]
[Black "Ziatdinov, Raset"]
[Result "1-0"]
[ECO "E97"]
[WhiteElo "2407"]
[BlackElo "2100"]
[Annotator "RC"]
[PlyCount "75"]
[EventDate "2023.12.31"]
[EventType "swiss"]
[EventCountry "IND"]
[SourceTitle "playchess.com"]
[Source "ChessBase"]
[SourceQuality "1"]
[TimeControl "5400+30"]

1. d4 {[%emt 0:03:19]} Nf6 {[%emt 0:00:08]} 2. c4 {[%emt 0:00:07]} g6 {[%emt 0:00:04]} 3. Nc3 {[%emt 0:00:09]} Bg7 {[%emt 0:00:04]} 4. e4 {[%emt 0:00:06]} d6 {[%emt 0:00:04]} 5. Be2 {[%emt 0:00:15]} O-O {[%emt 0:00:07]} 6. Nf3 {[%emt 0:00:25]} e5 {[%emt 0:00:06]} 7. O-O {[%emt 0:00:09]} Nc6 {[%emt 0:00:03]} 8. d5 {[%emt 0:00:07]} Ne7 {[%emt 0:00:03]} 9. b4 {[%emt 0:00:09]} a5 {[%emt 0:00:42]} 10. bxa5 {[%emt 0:00:19]} Nd7 {[%emt 0:00:28]} 11. Nd2 {[%emt 0:02:16]} Nc5 {[%emt 0:00:17]} 12. Nb3 {[%emt 0:01:17]} f5 {[%emt 0:00:19]} 13. f3 {[%emt 0:09:37]} f4 {[%emt 0:00:59]} 14. Nb5 {[%emt 0:02:14]} Na4 {[%emt 0:10:37]} 15. Ba3 {[%emt 0:15:07]} Rf6 {[%emt 0:01:15]} 16. c5 {[%emt 0:14:06]} dxc5 {[%emt 0:00:54]} 17. Qc2 {[%emt 0:03:17]} b6 {[%emt 0:02:50]} 18. Qc4 {[%emt 0:46:31]} c6 {[%emt 0:03:58]} 19. d6+ {[%emt 0:00:00]} Nd5 {[%emt 0:00:33]} 20. Qxa4 {[%emt 0:00:00]} cxb5 {[%emt 0:00:38]} 21. Bxb5 {[%emt 0:00:00]} Ne3 {[%emt 0:00:32]} 22. d7 {[%emt 0:00:00]} Ba6 {[%emt 0:06:05]} 23. Bxa6 {[%emt 0:00:00]} Rxa6 {[%emt 0:00:14]} 24. Qb5 {[%emt 0:00:00]} Ra8 {[%emt 0:01:21]} 25. Rfd1 {[%emt 0:00:00]} c4 {[%emt 0:15:19]} 26. Rac1 {[%emt 0:00:00]} Re6 {[%emt 0:21:23]} 27. Rxc4 {[%emt 0:01:44]} Bf8 {[%emt 0:07:06]} 28. Bxf8 {[%emt 0:01:39]} Kxf8 {[%emt 0:00:07]} 29. Rd3 {[%emt 0:01:11]} Kg7 {[%emt 0:08:15]} 30. Rc1 {[%emt 0:00:28]} Ra7 {[%emt 0:07:56]} 31. Rd2 {[%emt 0:00:19]} Ra8 {[%emt 0:04:36]} 32. axb6 {[%emt 0:00:15]} Qg5 {[%emt 0:00:49]} 33. b7 {[%emt 0:00:18]} Rd6 {[%emt 0:01:27]} 34. Qe2 {[%emt 0:00:19]} Rxd2 {[%emt 0:01:01]} 35. Qxd2 {[%emt 0:02:17]} Rd8 {[%emt 0:00:33]} 36. Rc8 {[%emt 0:00:00]} Kh6 {[%emt 0:00:18]} 37. Rxd8 {[%emt 0:00:00]} Qxd8 {[%emt 0:00:07]} 38. b8=Q {[%emt 0:00:00]} 1-0

[Event "14th Chennai GM Open 2023"]
[Site "Chennai"]
[Date "2024.01.07"]
[Round "10.11"]
[White "Khusenkhojaev, Muhammad"]
[Black "Matta, Vinay Kumar"]
[Result "1/2-1/2"]
[ECO "E73"]
[WhiteElo "2366"]
[BlackElo "2132"]
[Annotator "RC"]
[PlyCount "107"]
[EventDate "2023.12.31"]
[EventType "swiss"]
[EventCountry "IND"]
[SourceTitle "playchess.com"]
[Source "ChessBase"]
[SourceQuality "1"]
[TimeControl "5400+30"]

1. d4 {[%emt 0:02:14]} Nf6 {[%emt 0:01:23]} 2. c4 {[%emt 0:00:10]} g6 {[%emt 0:00:11]} 3. Nc3 {[%emt 0:01:32]} Bg7 {[%emt 0:00:06]} 4. e4 {[%emt 0:00:12]} d6 {[%emt 0:00:04]} 5. Be2 {[%emt 0:00:12]} O-O {[%emt 0:00:07]} 6. Be3 {[%emt 0:00:32]} e5 {[%emt 0:00:15]} 7. d5 {[%emt 0:01:07]} Na6 {[%emt 0:00:26]} 8. h4 {[%emt 0:00:22]} Nc5 {[%emt 0:01:05]} 9. Qc2 {[%emt 0:01:53]} a5 {[%emt 0:01:42]} 10. h5 {[%emt 0:00:36]} Nxh5 {[%emt 0:01:26]} 11. Bxh5 {[%emt 0:00:42]} gxh5 {[%emt 0:00:08]} 12. Rxh5 {[%emt 0:00:12]} Qe8 {[%emt 0:06:54]} 13. Nge2 {[%emt 0:04:51]} f5 {[%emt 1:23:13]} 14. Rh2 {[%emt 0:00:06]} fxe4 {[%emt 0:00:00]} 15. Bxc5 {[%emt 0:00:59]} dxc5 {[%emt 0:00:00]} 16. Ng3 {[%emt 0:01:54]} Qg6 {[%emt 0:00:00]} 17. O-O-O {[%emt 0:12:35]} Bh6+ {[%emt 0:00:00]} 18. Kb1 {[%emt 0:00:48]} Bf4 {[%emt 0:00:00]} 19. Qxe4 {[%emt 0:01:20]} Qxe4+ {[%emt 0:00:00]} 20. Ncxe4 {[%emt 0:00:08]} Bxg3 {[%emt 0:00:00]} 21. Nxg3 {[%emt 0:00:20]} Rxf2 {[%emt 0:00:00]} 22. Rdh1 {[%emt 0:00:50]} Rf7 {[%emt 0:00:00]} 23. Rh5 {[%emt 0:02:43]} Ra6 {[%emt 0:00:00]} 24. Rxe5 {[%emt 0:03:35]} Rg6 {[%emt 0:00:00]} 25. Re8+ {[%emt 0:01:58]} Rf8 {[%emt 0:00:00]} 26. Re3 {[%emt 0:00:05]} Rf2 {[%emt 0:00:00]} 27. Kc1 {[%emt 0:01:11]} Bd7 {[%emt 0:00:00]} 28. Ne4 {[%emt 0:01:12]} Rfxg2 {[%emt 0:00:00]} 29. Nxc5 {[%emt 0:00:37]} Bf5 {[%emt 0:00:00]} 30. Rf1 {[%emt 0:09:27]} Rc2+ {[%emt 0:00:00]} 31. Kd1 {[%emt 0:00:02]} Rxb2 {[%emt 0:00:00]} 32. Re8+ {[%emt 0:00:04]} Kg7 {[%emt 0:00:00]} 33. Re7+ {[%emt 0:00:17]} Kf6 {[%emt 0:00:00]} 34. Re6+ {[%emt 0:02:06]} Kg5 {[%emt 0:00:00]} 35. Rg1+ {[%emt 0:04:08]} Kh6 {[%emt 0:00:00]} 36. Rgxg6+ {[%emt 0:00:30]} hxg6 {[%emt 0:00:00]} 37. Re7 {[%emt 0:00:09]} Rb4 {[%emt 0:00:00]} 38. Rxc7 {[%emt 0:02:13]} Rxc4 {[%emt 0:00:00]} 39. d6 {[%emt 0:01:56]} Rd4+ {[%emt 0:00:45]} 40. Ke2 {[%emt 0:00:44]} Rxd6 {[%emt 0:00:45]} 41. Nxb7 {[%emt 0:00:04]} Rd5 {[%emt 0:03:35]} 42. Rc5 {[%emt 0:00:08]} Rxc5 {[%emt 0:00:27]} 43. Nxc5 {[%emt 0:00:05]} Kg5 {[%emt 0:00:13]} 44. a4 {[%emt 0:00:07]} Kf4 {[%emt 0:00:30]} 45. Nb7 {[%emt 0:03:31]} Be4 {[%emt 0:00:31]} 46. Nc5 {[%emt 0:00:26]} Bd5 {[%emt 0:00:48]} 47. Kd3 {[%emt 0:00:04]} Bc6 {[%emt 0:03:00]} 48. Kd4 {[%emt 0:00:27]} Bxa4 {[%emt 0:01:14]} 49. Nxa4 {[%emt 0:00:11]} g5 {[%emt 0:00:13]} 50. Nc5 {[%emt 0:01:00]} Kf3 {[%emt 0:00:53]} 51. Nd3 {[%emt 0:01:12]} Ke2 {[%emt 0:00:29]} 52. Ne5 {[%emt 0:00:32]} a4 {[%emt 0:00:36]} 53. Kc3 {[%emt 0:00:20]} Ke3 {[%emt 0:00:38]} 54. Nf7 {[%emt 0:00:12]} 1/2-1/2